[Event "Titled Tuesday Blitz June 1 2021"]
[White "Annaberdiyev, Babageldi"]
[Black "Vazquez, Guillermo"]
[WhiteFideId "14000385"]
[BlackFideId "3702308"]
[WhiteElo "2332"]
[BlackElo "2536"]
[Result "1-0"]
[Round "10"]
[TimeControl "180+1"]
[Date "2021.06.01"]
[WhiteClock "0:00:49"]
[BlackClock "0:00:08"]

1. e4 {[%clk 0:03:00]}  c6 {[%clk 0:03:00]} 2. d4 {[%clk 0:03:00]}  d5 {[%clk 0:03:00]} 3. Nd2 {[%clk 0:03:01]}  dxe4 {[%clk 0:03:00]} 4. Nxe4 {[%clk 0:03:02]}  Nf6 {[%clk 0:03:01]} 5. Nxf6+ {[%clk 0:03:02]}  exf6 {[%clk 0:03:02]} 6. Bc4 {[%clk 0:03:02]}  Na6 {[%clk 0:02:58]} 7. Qe2+ {[%clk 0:03:02]}  Be7 {[%clk 0:02:58]} 8. Nf3 {[%clk 0:02:57]}  O-O {[%clk 0:02:57]} 9. O-O {[%clk 0:02:57]}  Bd6 {[%clk 0:02:57]} 10. Re1 {[%clk 0:02:55]}  Nc7 {[%clk 0:02:55]} 11. Qd3 {[%clk 0:02:47]}  a5 {[%clk 0:02:40]} 12. a4 {[%clk 0:02:47]}  Bg4 {[%clk 0:02:36]} 13. h3 {[%clk 0:02:45]}  Bh5 {[%clk 0:02:35]} 14. c3 {[%clk 0:02:29]}  Qd7 {[%clk 0:02:30]} 15. Nh4 {[%clk 0:02:25]}  Rfe8 {[%clk 0:02:21]} 16. Bd2 {[%clk 0:02:25]}  Bf8 {[%clk 0:01:57]} 17. g4 {[%clk 0:02:20]}  Bg6 {[%clk 0:01:46]} 18. Nxg6 {[%clk 0:02:20]}  hxg6 {[%clk 0:01:46]} 19. Qxg6 {[%clk 0:02:21]}  b5 {[%clk 0:01:47]} 20. Ba2 {[%clk 0:02:08]}  bxa4 {[%clk 0:01:44]} 21. Qd3 {[%clk 0:02:03]}  Nb5 {[%clk 0:01:38]} 22. Bb1 {[%clk 0:02:02]}  g6 {[%clk 0:01:38]} 23. Rxe8 {[%clk 0:01:58]}  Qxe8 {[%clk 0:01:30]} 24. Rxa4 {[%clk 0:01:58]}  c5 {[%clk 0:01:30]} 25. Ra1 {[%clk 0:01:52]}  cxd4 {[%clk 0:01:24]} 26. cxd4 {[%clk 0:01:53]}  a4 {[%clk 0:01:22]} 27. Bc2 {[%clk 0:01:51]}  a3 {[%clk 0:01:21]} 28. bxa3 {[%clk 0:01:49]}  Nxa3 {[%clk 0:01:21]} 29. Bb3 {[%clk 0:01:46]}  Kg7 {[%clk 0:01:20]} 30. d5 {[%clk 0:01:39]}  Bd6 {[%clk 0:01:16]} 31. Bc3 {[%clk 0:01:39]}  Be5 {[%clk 0:01:12]} 32. Re1 {[%clk 0:01:35]}  Nb5 {[%clk 0:01:12]} 33. Bxe5 {[%clk 0:01:30]}  fxe5 {[%clk 0:01:12]} 34. f4 {[%clk 0:01:30]}  Qb8 {[%clk 0:01:01]} 35. fxe5 {[%clk 0:01:28]}  Qb6+ {[%clk 0:01:01]} 36. Qe3 {[%clk 0:01:25]}  Nd4 {[%clk 0:01:01]} 37. Bd1 {[%clk 0:01:16]}  Ra3 {[%clk 0:00:58]} 38. Qf2 {[%clk 0:01:13]}  Rxh3 {[%clk 0:00:45]} 39. Kg2 {[%clk 0:01:01]}  Rd3 {[%clk 0:00:39]} 40. e6 {[%clk 0:01:01]}  fxe6 {[%clk 0:00:37]} 41. Rf1 {[%clk 0:01:01]}  Qb8 {[%clk 0:00:08]} 42. Qf7+ {[%clk 0:00:53]}  Kh6 {[%clk 0:00:08]} 43. g5+ {[%clk 0:00:50]}  Kxg5 {[%clk 0:00:08]} 44. Qf6+ {[%clk 0:00:49]} 1-0


[Site "https://www.chess.com"]

[Event "Titled Tuesday Blitz June 1 2021"]
[White "Baches Garcia, Guillermo"]
[Black "Goncalves, Davi Sulzbacher"]
[WhiteFideId "2209764"]
[BlackFideId "2154510"]
[WhiteElo "2410"]
[BlackElo "2107"]
[Result "0-1"]
[Round "10"]
[TimeControl "180+1"]
[Date "2021.06.01"]
[WhiteClock "0:00:09"]
[BlackClock "0:00:04"]

1. e4 {[%clk 0:02:57]}  c6 {[%clk 0:02:42]} 2. c4 {[%clk 0:02:56]}  d5 {[%clk 0:02:43]} 3. exd5 {[%clk 0:02:57]}  cxd5 {[%clk 0:02:43]} 4. cxd5 {[%clk 0:02:57]}  Nf6 {[%clk 0:02:44]} 5. Nc3 {[%clk 0:02:58]}  Nxd5 {[%clk 0:02:42]} 6. Nf3 {[%clk 0:02:58]}  Nc6 {[%clk 0:02:40]} 7. Bb5 {[%clk 0:02:57]}  Bg4 {[%clk 0:02:37]} 8. Qa4 {[%clk 0:02:43]}  Nxc3 {[%clk 0:01:40]} 9. Bxc6+ {[%clk 0:02:42]}  bxc6 {[%clk 0:01:40]} 10. Qxc6+ {[%clk 0:02:42]}  Bd7 {[%clk 0:01:40]} 11. Qxc3 {[%clk 0:02:42]}  Rc8 {[%clk 0:01:39]} 12. Qe3 {[%clk 0:02:39]}  e6 {[%clk 0:01:38]} 13. O-O {[%clk 0:02:38]}  Bd6 {[%clk 0:01:36]} 14. d4 {[%clk 0:02:27]}  O-O {[%clk 0:01:36]} 15. Ne5 {[%clk 0:02:25]}  Bb5 {[%clk 0:01:26]} 16. Re1 {[%clk 0:02:19]}  Rc2 {[%clk 0:01:14]} 17. Qb3 {[%clk 0:02:09]}  Qa5 {[%clk 0:01:13]} 18. Be3 {[%clk 0:01:56]}  Rfc8 {[%clk 0:01:10]} 19. a4 {[%clk 0:01:45]}  Ba6 {[%clk 0:01:08]} 20. h3 {[%clk 0:01:33]}  h6 {[%clk 0:01:05]} 21. Red1 {[%clk 0:01:15]}  Qd5 {[%clk 0:00:49]} 22. Qxd5 {[%clk 0:01:09]}  exd5 {[%clk 0:00:50]} 23. Rdc1 {[%clk 0:01:07]}  f6 {[%clk 0:00:48]} 24. Nf3 {[%clk 0:01:01]}  Rxb2 {[%clk 0:00:47]} 25. Rxc8+ {[%clk 0:01:00]}  Bxc8 {[%clk 0:00:48]} 26. Rc1 {[%clk 0:00:57]}  Bd7 {[%clk 0:00:48]} 27. a5 {[%clk 0:00:50]}  Rb5 {[%clk 0:00:44]} 28. Bd2 {[%clk 0:00:49]}  Kf7 {[%clk 0:00:40]} 29. Kf1 {[%clk 0:00:42]}  g5 {[%clk 0:00:39]} 30. Ke2 {[%clk 0:00:42]}  Rb3 {[%clk 0:00:37]} 31. Rc3 {[%clk 0:00:39]}  Bb5+ {[%clk 0:00:34]} 32. Kd1 {[%clk 0:00:37]}  Rb1+ {[%clk 0:00:31]} 33. Kc2 {[%clk 0:00:37]}  Ra1 {[%clk 0:00:27]} 34. Rc8 {[%clk 0:00:29]}  Bc4 {[%clk 0:00:25]} 35. Ra8 {[%clk 0:00:21]}  a6 {[%clk 0:00:25]} 36. Ra7+ {[%clk 0:00:19]}  Kg6 {[%clk 0:00:21]} 37. Rd7 {[%clk 0:00:19]}  Ba3 {[%clk 0:00:19]} 38. Be3 {[%clk 0:00:17]}  Ra2+ {[%clk 0:00:19]} 39. Kb1 {[%clk 0:00:17]}  Rb2+ {[%clk 0:00:18]} 40. Ka1 {[%clk 0:00:17]}  Rc2 {[%clk 0:00:14]} 41. Ne1 {[%clk 0:00:16]}  Re2 {[%clk 0:00:13]} 42. Nf3 {[%clk 0:00:16]}  h5 {[%clk 0:00:12]} 43. Rc7 {[%clk 0:00:15]}  Kf5 {[%clk 0:00:10]} 44. Kb1 {[%clk 0:00:12]}  Bd3+ {[%clk 0:00:09]} 45. Ka1 {[%clk 0:00:12]}  Bc4 {[%clk 0:00:08]} 46. Kb1 {[%clk 0:00:12]}  Bd3+ {[%clk 0:00:07]} 47. Ka1 {[%clk 0:00:12]}  Bb2+ {[%clk 0:00:08]} 48. Ka2 {[%clk 0:00:12]}  Bxd4+ {[%clk 0:00:07]} 49. Kb3 {[%clk 0:00:12]}  Bxe3 {[%clk 0:00:07]} 50. fxe3 {[%clk 0:00:11]}  Rxe3 {[%clk 0:00:08]} 51. Kb4 {[%clk 0:00:12]}  Bb5 {[%clk 0:00:05]} 52. Nd4+ {[%clk 0:00:11]}  Ke4 {[%clk 0:00:03]} 53. Nxb5 {[%clk 0:00:11]}  axb5 {[%clk 0:00:03]} 54. a6 {[%clk 0:00:10]}  Re1 {[%clk 0:00:02]} 55. Kxb5 {[%clk 0:00:09]}  Rb1+ {[%clk 0:00:02]} 56. Kc5 {[%clk 0:00:08]}  Rc1+ {[%clk 0:00:02]} 57. Kb6 {[%clk 0:00:08]}  Rb1+ {[%clk 0:00:03]} 58. Kc6 {[%clk 0:00:08]}  Ra1 {[%clk 0:00:02]} 59. Kb7 {[%clk 0:00:09]}  d4 {[%clk 0:00:03]} 60. a7 {[%clk 0:00:08]}  d3 {[%clk 0:00:03]} 61. Rc6 {[%clk 0:00:09]}  d2 {[%clk 0:00:02]} 62. Rd6 {[%clk 0:00:08]}  Rxa7+ {[%clk 0:00:02]} 63. Kxa7 {[%clk 0:00:08]}  Ke3 {[%clk 0:00:02]} 64. Kb6 {[%clk 0:00:07]}  Ke2 {[%clk 0:00:02]} 65. Kc5 {[%clk 0:00:08]}  f5 {[%clk 0:00:03]} 66. Rd5 {[%clk 0:00:08]}  f4 {[%clk 0:00:03]} 67. Kd6 {[%clk 0:00:08]}  g4 {[%clk 0:00:03]} 68. hxg4 {[%clk 0:00:08]}  hxg4 {[%clk 0:00:04]} 69. Ke5 {[%clk 0:00:08]}  f3 {[%clk 0:00:04]} 70. gxf3 {[%clk 0:00:09]}  gxf3 {[%clk 0:00:04]} 71. Kf4 {[%clk 0:00:09]}  f2 {[%clk 0:00:04]} 0-1


[Site "https://www.chess.com"]

[Event "Titled Tuesday Blitz June 1 2021"]
[White "Baskin, Robert"]
[Black "Ter-Sahakyan, Samvel"]
[WhiteFideId "24662402"]
[BlackFideId "13302531"]
[WhiteElo "2462"]
[BlackElo "2551"]
[Result "0-1"]
[Round "10"]
[TimeControl "180+1"]
[Date "2021.06.01"]
[WhiteClock "0:00:02"]
[BlackClock "0:00:52"]

1. d4 {[%clk 0:03:00]}  Nf6 {[%clk 0:02:58]} 2. c4 {[%clk 0:03:00]}  e6 {[%clk 0:02:55]} 3. Nf3 {[%clk 0:02:57]}  d5 {[%clk 0:02:54]} 4. g3 {[%clk 0:02:56]}  Bb4+ {[%clk 0:02:51]} 5. Bd2 {[%clk 0:02:55]}  a5 {[%clk 0:02:51]} 6. Bg2 {[%clk 0:02:55]}  O-O {[%clk 0:02:51]} 7. Qc2 {[%clk 0:02:55]}  c5 {[%clk 0:02:51]} 8. cxd5 {[%clk 0:02:52]}  cxd4 {[%clk 0:02:50]} 9. Nxd4 {[%clk 0:02:51]}  Qb6 {[%clk 0:02:50]} 10. e3 {[%clk 0:02:42]}  exd5 {[%clk 0:02:49]} 11. O-O {[%clk 0:02:16]}  Nc6 {[%clk 0:02:49]} 12. Nxc6 {[%clk 0:02:13]}  bxc6 {[%clk 0:02:49]} 13. Rc1 {[%clk 0:02:11]}  Rb8 {[%clk 0:02:47]} 14. Nc3 {[%clk 0:02:08]}  h5 {[%clk 0:02:39]} 15. a3 {[%clk 0:02:02]}  Be7 {[%clk 0:02:35]} 16. Na4 {[%clk 0:01:48]}  Qd8 {[%clk 0:02:32]} 17. Qxc6 {[%clk 0:01:37]}  Bd7 {[%clk 0:02:31]} 18. Qc2 {[%clk 0:01:37]}  h4 {[%clk 0:02:07]} 19. Nc5 {[%clk 0:01:23]}  Bg4 {[%clk 0:01:38]} 20. b4 {[%clk 0:01:19]}  axb4 {[%clk 0:01:35]} 21. axb4 {[%clk 0:01:19]}  h3 {[%clk 0:01:33]} 22. Bh1 {[%clk 0:01:19]}  d4 {[%clk 0:01:33]} 23. exd4 {[%clk 0:01:13]}  Qxd4 {[%clk 0:01:33]} 24. Bc3 {[%clk 0:01:08]}  Qc4 {[%clk 0:01:29]} 25. Bd2 {[%clk 0:00:36]}  Qxc2 {[%clk 0:01:21]} 26. Rxc2 {[%clk 0:00:37]}  Rfd8 {[%clk 0:01:21]} 27. Na6 {[%clk 0:00:25]}  Rb6 {[%clk 0:01:16]} 28. Nc5 {[%clk 0:00:10]}  Nd5 {[%clk 0:00:56]} 29. Rb2 {[%clk 0:00:05]}  Bxc5 {[%clk 0:00:54]} 30. Bxd5 {[%clk 0:00:02]}  Rxd5 {[%clk 0:00:53]} 31. Ra8+ {[%clk 0:00:02]}  Kh7 {[%clk 0:00:52]} 0-1


[Site "https://www.chess.com"]

[Event "Titled Tuesday Blitz June 1 2021"]
[White "Demchenko, Anton"]
[Black "Gogolev, Artem"]
[WhiteFideId "4160258"]
[BlackFideId "4116615"]
[WhiteElo "2593"]
[BlackElo "2191"]
[Result "1-0"]
[Round "10"]
[TimeControl "180+1"]
[Date "2021.06.01"]
[WhiteClock "0:00:39"]
[BlackClock "0:00:01"]

1. d4 {[%clk 0:03:00]}  Nf6 {[%clk 0:02:59]} 2. Nf3 {[%clk 0:03:01]}  e6 {[%clk 0:02:57]} 3. Bf4 {[%clk 0:03:02]}  c5 {[%clk 0:02:55]} 4. e3 {[%clk 0:03:02]}  b6 {[%clk 0:02:55]} 5. Bd3 {[%clk 0:03:00]}  Bb7 {[%clk 0:02:55]} 6. Nbd2 {[%clk 0:03:00]}  cxd4 {[%clk 0:02:52]} 7. exd4 {[%clk 0:03:00]}  Be7 {[%clk 0:02:52]} 8. c3 {[%clk 0:02:59]}  O-O {[%clk 0:02:51]} 9. O-O {[%clk 0:02:59]}  d6 {[%clk 0:02:51]} 10. h3 {[%clk 0:02:59]}  a6 {[%clk 0:02:49]} 11. Bg3 {[%clk 0:02:58]}  Nbd7 {[%clk 0:02:47]} 12. a4 {[%clk 0:02:58]}  Qc7 {[%clk 0:02:46]} 13. Re1 {[%clk 0:02:57]}  h6 {[%clk 0:02:45]} 14. Nc4 {[%clk 0:02:54]}  b5 {[%clk 0:02:36]} 15. Ne3 {[%clk 0:02:52]}  Qb6 {[%clk 0:02:31]} 16. Nd2 {[%clk 0:02:50]}  Nd5 {[%clk 0:02:12]} 17. Qb3 {[%clk 0:02:32]}  Nxe3 {[%clk 0:02:11]} 18. Rxe3 {[%clk 0:02:33]}  Bd5 {[%clk 0:01:59]} 19. Qc2 {[%clk 0:02:29]}  Rfc8 {[%clk 0:01:50]} 20. axb5 {[%clk 0:02:17]}  axb5 {[%clk 0:01:48]} 21. Rxa8 {[%clk 0:02:18]}  Rxa8 {[%clk 0:01:45]} 22. Re1 {[%clk 0:02:18]}  Qa5 {[%clk 0:01:34]} 23. Ne4 {[%clk 0:02:02]}  Bxe4 {[%clk 0:01:31]} 24. Bxe4 {[%clk 0:02:01]}  Rc8 {[%clk 0:01:22]} 25. Qe2 {[%clk 0:01:54]}  Nf6 {[%clk 0:01:18]} 26. Bb7 {[%clk 0:01:48]}  Rc7 {[%clk 0:01:13]} 27. Bf3 {[%clk 0:01:48]}  Qa2 {[%clk 0:01:05]} 28. Qxb5 {[%clk 0:01:44]}  Rc8 {[%clk 0:00:58]} 29. Qb7 {[%clk 0:01:43]}  Re8 {[%clk 0:00:58]} 30. Bc6 {[%clk 0:01:42]}  Kf8 {[%clk 0:00:49]} 31. Bxe8 {[%clk 0:01:41]}  Nxe8 {[%clk 0:00:50]} 32. Qb8 {[%clk 0:01:37]}  h5 {[%clk 0:00:44]} 33. f3 {[%clk 0:01:36]}  h4 {[%clk 0:00:43]} 34. Bf2 {[%clk 0:01:36]}  d5 {[%clk 0:00:41]} 35. Kh1 {[%clk 0:01:29]}  Bd6 {[%clk 0:00:40]} 36. Qb5 {[%clk 0:01:27]}  g5 {[%clk 0:00:40]} 37. Be3 {[%clk 0:01:26]}  Be7 {[%clk 0:00:35]} 38. Qe2 {[%clk 0:01:00]}  Nd6 {[%clk 0:00:34]} 39. Bg1 {[%clk 0:01:00]}  Nf5 {[%clk 0:00:33]} 40. Bh2 {[%clk 0:01:00]}  Bd6 {[%clk 0:00:29]} 41. Bxd6+ {[%clk 0:00:50]}  Nxd6 {[%clk 0:00:30]} 42. Qd2 {[%clk 0:00:50]}  Nf5 {[%clk 0:00:26]} 43. Kh2 {[%clk 0:00:48]}  Qa7 {[%clk 0:00:09]} 44. Kg1 {[%clk 0:00:43]}  Qb8 {[%clk 0:00:09]} 45. b4 {[%clk 0:00:40]}  Qg3 {[%clk 0:00:08]} 46. Rb1 {[%clk 0:00:40]}  Kg7 {[%clk 0:00:07]} 47. b5 {[%clk 0:00:39]}  Nd6 {[%clk 0:00:02]} 48. Qe1 {[%clk 0:00:40]}  Qf4 {[%clk 0:00:01]} 49. Qe5+ {[%clk 0:00:38]}  Qxe5 {[%clk 0:00:01]} 50. dxe5 {[%clk 0:00:39]} 1-0


[Site "https://www.chess.com"]

[Event "Titled Tuesday Blitz June 1 2021"]
[White "Devaev, Alexander"]
[Black "Weetik, Vjacheslav"]
[WhiteFideId "4169395"]
[BlackFideId "4153472"]
[WhiteElo "2185"]
[BlackElo "2469"]
[Result "1/2-1/2"]
[Round "10"]
[TimeControl "180+1"]
[Date "2021.06.01"]
[WhiteClock "0:00:15"]
[BlackClock "0:00:03"]

1. d4 {[%clk 0:02:56]}  Nf6 {[%clk 0:02:52]} 2. c4 {[%clk 0:02:54]}  g6 {[%clk 0:02:52]} 3. Nc3 {[%clk 0:02:55]}  Bg7 {[%clk 0:02:53]} 4. e4 {[%clk 0:02:55]}  d6 {[%clk 0:02:53]} 5. Nf3 {[%clk 0:02:56]}  O-O {[%clk 0:02:53]} 6. h3 {[%clk 0:02:56]}  e5 {[%clk 0:02:54]} 7. d5 {[%clk 0:02:56]}  a5 {[%clk 0:02:54]} 8. Bg5 {[%clk 0:02:57]}  h6 {[%clk 0:02:53]} 9. Be3 {[%clk 0:02:57]}  Na6 {[%clk 0:02:45]} 10. g4 {[%clk 0:02:57]}  c6 {[%clk 0:02:27]} 11. Rg1 {[%clk 0:02:54]}  cxd5 {[%clk 0:02:21]} 12. cxd5 {[%clk 0:02:55]}  Bd7 {[%clk 0:02:09]} 13. Nd2 {[%clk 0:02:55]}  Nc5 {[%clk 0:01:45]} 14. Be2 {[%clk 0:02:43]}  Rc8 {[%clk 0:01:20]} 15. h4 {[%clk 0:02:37]}  b5 {[%clk 0:01:11]} 16. g5 {[%clk 0:02:31]}  hxg5 {[%clk 0:01:11]} 17. hxg5 {[%clk 0:02:32]}  b4 {[%clk 0:00:36]} 18. gxf6 {[%clk 0:02:30]}  bxc3 {[%clk 0:00:36]} 19. fxg7 {[%clk 0:02:27]}  cxd2+ {[%clk 0:00:36]} 20. Qxd2 {[%clk 0:02:27]}  Kxg7 {[%clk 0:00:28]} 21. Bh6+ {[%clk 0:02:25]}  Kg8 {[%clk 0:00:27]} 22. Bxf8 {[%clk 0:02:25]}  Qxf8 {[%clk 0:00:26]} 23. f3 {[%clk 0:02:12]}  Kg7 {[%clk 0:00:12]} 24. Rh1 {[%clk 0:02:09]}  Qd8 {[%clk 0:00:13]} 25. Qh6+ {[%clk 0:02:07]}  Kf6 {[%clk 0:00:13]} 26. Qh4+ {[%clk 0:02:07]}  Kg7 {[%clk 0:00:13]} 27. Qxd8 {[%clk 0:02:07]}  Rxd8 {[%clk 0:00:13]} 28. Rc1 {[%clk 0:02:05]}  Rb8 {[%clk 0:00:13]} 29. b3 {[%clk 0:02:05]}  a4 {[%clk 0:00:14]} 30. bxa4 {[%clk 0:02:00]}  Rb2 {[%clk 0:00:14]} 31. a5 {[%clk 0:01:00]}  Rxa2 {[%clk 0:00:14]} 32. a6 {[%clk 0:01:01]}  Bc8 {[%clk 0:00:10]} 33. Bc4 {[%clk 0:00:54]}  Ra3 {[%clk 0:00:09]} 34. Kf2 {[%clk 0:00:51]}  Bxa6 {[%clk 0:00:09]} 35. Bxa6 {[%clk 0:00:51]}  Rxa6 {[%clk 0:00:10]} 36. Rc2 {[%clk 0:00:49]}  Ra3 {[%clk 0:00:10]} 37. Rb1 {[%clk 0:00:49]}  f5 {[%clk 0:00:09]} 38. Rb6 {[%clk 0:00:43]}  fxe4 {[%clk 0:00:09]} 39. Rxd6 {[%clk 0:00:44]}  Rxf3+ {[%clk 0:00:06]} 40. Ke2 {[%clk 0:00:43]}  Nd3 {[%clk 0:00:07]} 41. Rc7+ {[%clk 0:00:43]}  Kh6 {[%clk 0:00:07]} 42. Rd8 {[%clk 0:00:38]}  Nf4+ {[%clk 0:00:08]} 43. Ke1 {[%clk 0:00:37]}  e3 {[%clk 0:00:08]} 44. Rc2 {[%clk 0:00:33]}  Kg5 {[%clk 0:00:06]} 45. Rh2 {[%clk 0:00:32]}  e2 {[%clk 0:00:06]} 46. Rxe2 {[%clk 0:00:28]}  Nxe2 {[%clk 0:00:06]} 47. Kxe2 {[%clk 0:00:29]}  e4 {[%clk 0:00:07]} 48. d6 {[%clk 0:00:29]}  Rd3 {[%clk 0:00:07]} 49. Re8 {[%clk 0:00:29]}  Rxd6 {[%clk 0:00:07]} 50. Rxe4 {[%clk 0:00:29]}  Rf6 {[%clk 0:00:07]} 51. Ke3 {[%clk 0:00:26]}  Kh5 {[%clk 0:00:06]} 52. Ke2 {[%clk 0:00:23]}  g5 {[%clk 0:00:07]} 53. Re8 {[%clk 0:00:17]}  g4 {[%clk 0:00:07]} 54. Rh8+ {[%clk 0:00:16]}  Kg5 {[%clk 0:00:07]} 55. Ke3 {[%clk 0:00:15]}  g3 {[%clk 0:00:07]} 56. Rg8+ {[%clk 0:00:13]}  Kh4 {[%clk 0:00:07]} 57. Rh8+ {[%clk 0:00:14]}  Kg4 {[%clk 0:00:07]} 58. Ke2 {[%clk 0:00:15]}  Rf5 {[%clk 0:00:06]} 59. Ke1 {[%clk 0:00:13]}  Kf3 {[%clk 0:00:03]} 60. Kf1 {[%clk 0:00:13]}  Rg5 {[%clk 0:00:02]} 61. Kg1 {[%clk 0:00:13]}  g2 {[%clk 0:00:02]} 62. Rf8+ {[%clk 0:00:13]}  Kg4 {[%clk 0:00:02]} 63. Rf2 {[%clk 0:00:14]}  Kh3 {[%clk 0:00:02]} 64. Rf3+ {[%clk 0:00:14]}  Rg3 {[%clk 0:00:03]} 65. Rxg3+ {[%clk 0:00:15]}  Kxg3 {[%clk 0:00:03]} 1/2-1/2


[Site "https://www.chess.com"]

[Event "Titled Tuesday Blitz June 1 2021"]
[White "Dobrov, Vladimir"]
[Black "Sarana, Alexey"]
[WhiteFideId "4136594"]
[BlackFideId "24133795"]
[WhiteElo "2614"]
[BlackElo "2629"]
[Result "0-1"]
[Round "10"]
[TimeControl "180+1"]
[Date "2021.06.01"]
[WhiteClock "0:00:55"]
[BlackClock "0:01:29"]

1. b3 {[%clk 0:03:00]}  Nf6 {[%clk 0:02:56]} 2. Bb2 {[%clk 0:03:00]}  g6 {[%clk 0:02:57]} 3. c4 {[%clk 0:02:54]}  Bg7 {[%clk 0:02:55]} 4. g3 {[%clk 0:02:54]}  c6 {[%clk 0:02:55]} 5. Bg2 {[%clk 0:02:55]}  d5 {[%clk 0:02:56]} 6. Nf3 {[%clk 0:02:55]}  O-O {[%clk 0:02:56]} 7. O-O {[%clk 0:02:54]}  Nbd7 {[%clk 0:02:57]} 8. d4 {[%clk 0:02:53]}  b5 {[%clk 0:02:56]} 9. Nbd2 {[%clk 0:02:53]}  bxc4 {[%clk 0:02:56]} 10. bxc4 {[%clk 0:02:53]}  Rb8 {[%clk 0:02:57]} 11. Qc2 {[%clk 0:02:52]}  Ba6 {[%clk 0:02:57]} 12. Rab1 {[%clk 0:02:51]}  Qa5 {[%clk 0:02:48]} 13. Bc3 {[%clk 0:02:51]}  Qc7 {[%clk 0:02:48]} 14. Qa4 {[%clk 0:02:50]}  Rxb1 {[%clk 0:02:41]} 15. Rxb1 {[%clk 0:02:49]}  Qc8 {[%clk 0:02:42]} 16. c5 {[%clk 0:02:12]}  Bxe2 {[%clk 0:02:38]} 17. Re1 {[%clk 0:02:12]}  Bxf3 {[%clk 0:02:20]} 18. Bxf3 {[%clk 0:02:09]}  e6 {[%clk 0:02:21]} 19. Nb3 {[%clk 0:02:02]}  Ne4 {[%clk 0:02:14]} 20. Bxe4 {[%clk 0:01:34]}  dxe4 {[%clk 0:02:15]} 21. Rxe4 {[%clk 0:01:31]}  Nf6 {[%clk 0:02:15]} 22. Re1 {[%clk 0:01:31]}  Nd5 {[%clk 0:02:15]} 23. Bd2 {[%clk 0:01:31]}  h5 {[%clk 0:02:06]} 24. h4 {[%clk 0:01:30]}  Qb7 {[%clk 0:02:05]} 25. Kg2 {[%clk 0:01:15]}  Rd8 {[%clk 0:01:52]} 26. Rd1 {[%clk 0:01:14]}  Bf6 {[%clk 0:01:51]} 27. Be1 {[%clk 0:01:14]}  Kg7 {[%clk 0:01:50]} 28. Na5 {[%clk 0:01:13]}  Qa6 {[%clk 0:01:48]} 29. Qxc6 {[%clk 0:01:12]}  Qe2 {[%clk 0:01:30]} 30. Rb1 {[%clk 0:00:55]}  Qe4+ {[%clk 0:01:29]} 0-1


[Site "https://www.chess.com"]

[Event "Titled Tuesday Blitz June 1 2021"]
[White "Donchenko, Alexander"]
[Black "Sanchez Alvares, Kelvin Antonio"]
[WhiteFideId "24603295"]
[BlackFideId "3906680"]
[WhiteElo "2553"]
[BlackElo "2247"]
[Result "1-0"]
[Round "10"]
[TimeControl "180+1"]
[Date "2021.06.01"]
[WhiteClock "0:00:32"]
[BlackClock "0:00:12"]

1. e4 {[%clk 0:03:00]}  c5 {[%clk 0:02:59]} 2. Nf3 {[%clk 0:03:00]}  d6 {[%clk 0:02:59]} 3. Bb5+ {[%clk 0:03:00]}  Nd7 {[%clk 0:02:59]} 4. O-O {[%clk 0:03:00]}  a6 {[%clk 0:02:59]} 5. Bd3 {[%clk 0:03:00]}  Ngf6 {[%clk 0:02:58]} 6. c3 {[%clk 0:03:01]}  b5 {[%clk 0:02:58]} 7. a4 {[%clk 0:03:00]}  c4 {[%clk 0:02:56]} 8. Bc2 {[%clk 0:03:00]}  Bb7 {[%clk 0:02:56]} 9. Re1 {[%clk 0:03:00]}  e5 {[%clk 0:02:55]} 10. d4 {[%clk 0:02:56]}  cxd3 {[%clk 0:02:54]} 11. Qxd3 {[%clk 0:02:56]}  Nc5 {[%clk 0:02:51]} 12. Qe2 {[%clk 0:02:56]}  bxa4 {[%clk 0:02:38]} 13. Be3 {[%clk 0:02:56]}  Nfd7 {[%clk 0:02:33]} 14. Bxc5 {[%clk 0:02:53]}  Nxc5 {[%clk 0:02:32]} 15. Rxa4 {[%clk 0:02:53]}  Be7 {[%clk 0:02:25]} 16. Ra1 {[%clk 0:02:51]}  O-O {[%clk 0:02:24]} 17. Nbd2 {[%clk 0:02:51]}  Qc7 {[%clk 0:02:16]} 18. Nf1 {[%clk 0:02:45]}  Ne6 {[%clk 0:02:15]} 19. Ne3 {[%clk 0:02:44]}  Nf4 {[%clk 0:02:15]} 20. Qd2 {[%clk 0:02:44]}  Rfb8 {[%clk 0:02:11]} 21. g3 {[%clk 0:02:42]}  Ne6 {[%clk 0:02:10]} 22. b4 {[%clk 0:02:20]}  Rc8 {[%clk 0:01:59]} 23. Ra3 {[%clk 0:02:19]}  Ng5 {[%clk 0:01:45]} 24. Nxg5 {[%clk 0:02:10]}  Bxg5 {[%clk 0:01:46]} 25. h4 {[%clk 0:02:10]}  Bxe3 {[%clk 0:01:40]} 26. Rxe3 {[%clk 0:02:10]}  a5 {[%clk 0:01:40]} 27. Bb3 {[%clk 0:02:05]}  axb4 {[%clk 0:01:37]} 28. Rxa8 {[%clk 0:02:06]}  Bxa8 {[%clk 0:01:36]} 29. cxb4 {[%clk 0:02:06]}  Qc1+ {[%clk 0:01:35]} 30. Qxc1 {[%clk 0:02:04]}  Rxc1+ {[%clk 0:01:36]} 31. Kg2 {[%clk 0:02:03]}  Kf8 {[%clk 0:01:35]} 32. g4 {[%clk 0:01:57]}  Ke7 {[%clk 0:01:33]} 33. Kf3 {[%clk 0:01:55]}  Rb1 {[%clk 0:01:31]} 34. Rc3 {[%clk 0:01:53]}  Kd7 {[%clk 0:01:19]} 35. b5 {[%clk 0:01:50]}  f6 {[%clk 0:01:16]} 36. b6 {[%clk 0:01:50]}  Bc6 {[%clk 0:01:08]} 37. h5 {[%clk 0:01:22]}  h6 {[%clk 0:01:06]} 38. Be6+ {[%clk 0:00:57]}  Kxe6 {[%clk 0:01:04]} 39. Rxc6 {[%clk 0:00:58]}  Rb3+ {[%clk 0:01:00]} 40. Kg2 {[%clk 0:00:58]}  Rb2 {[%clk 0:00:57]} 41. Kg3 {[%clk 0:00:57]}  Rb1 {[%clk 0:00:52]} 42. Kf3 {[%clk 0:00:52]}  Rb3+ {[%clk 0:00:50]} 43. Ke2 {[%clk 0:00:52]}  Rb4 {[%clk 0:00:41]} 44. Kd3 {[%clk 0:00:51]}  Rb1 {[%clk 0:00:34]} 45. Kc2 {[%clk 0:00:46]}  Rb5 {[%clk 0:00:33]} 46. Kc3 {[%clk 0:00:44]}  Rb1 {[%clk 0:00:32]} 47. Kd3 {[%clk 0:00:44]}  Rb2 {[%clk 0:00:27]} 48. Ke3 {[%clk 0:00:43]}  Rb3+ {[%clk 0:00:26]} 49. Ke2 {[%clk 0:00:44]}  Rb2+ {[%clk 0:00:27]} 50. Kf1 {[%clk 0:00:44]}  Rb3 {[%clk 0:00:27]} 51. Kg2 {[%clk 0:00:43]}  Rb2 {[%clk 0:00:27]} 52. Kg3 {[%clk 0:00:42]}  Rb1 {[%clk 0:00:27]} 53. f3 {[%clk 0:00:43]}  Rg1+ {[%clk 0:00:26]} 54. Kf2 {[%clk 0:00:43]}  Rb1 {[%clk 0:00:27]} 55. Kg2 {[%clk 0:00:42]}  Rb2+ {[%clk 0:00:26]} 56. Kg3 {[%clk 0:00:42]}  Rb3 {[%clk 0:00:26]} 57. Rc7 {[%clk 0:00:42]}  Rxb6 {[%clk 0:00:21]} 58. Rxg7 {[%clk 0:00:43]}  d5 {[%clk 0:00:20]} 59. exd5+ {[%clk 0:00:41]}  Kxd5 {[%clk 0:00:20]} 60. Rg6 {[%clk 0:00:41]}  Ke6 {[%clk 0:00:20]} 61. Rxh6 {[%clk 0:00:40]}  Rb8 {[%clk 0:00:18]} 62. g5 {[%clk 0:00:38]}  Kf5 {[%clk 0:00:18]} 63. g6 {[%clk 0:00:34]}  Kg5 {[%clk 0:00:17]} 64. Rh7 {[%clk 0:00:34]}  Rg8 {[%clk 0:00:15]} 65. g7 {[%clk 0:00:34]}  f5 {[%clk 0:00:12]} 66. h6 {[%clk 0:00:34]}  Kg6 {[%clk 0:00:12]} 67. Rh8 {[%clk 0:00:34]}  Kf7 {[%clk 0:00:12]} 68. Kh4 {[%clk 0:00:32]} 1-0


[Site "https://www.chess.com"]